[Event "Asian Continental-ch Women 2019"]
[Site "XingTai"]
[Date "2019.06.08"]
[Round "2.25"]
[White "Karavade, Eesha"]
[Black "Zhang, Xiao"]
[Result "1-0"]
[ECO "B11"]
[WhiteElo "2370"]
[BlackElo "2234"]
[Annotator "NA"]
[PlyCount "149"]
[EventDate "2019.06.06"]
[EventType "swiss"]
[EventCountry "CHN"]
[SourceTitle "playchess.com"]
[Source "ChessBase"]
[SourceQuality "1"]
[TimeControl "40/5400+30:1800+30"]

1. e4 {[%emt 0:00:00]} c6 {[%emt 0:00:00]} 2. Nf3 {[%emt 0:00:00]} d5 {[%emt 0:00:04]} 3. Nc3 {[%emt 0:00:06]} Bg4 {[%emt 0:03:30]} 4. Be2 {[%emt 0:00:14]} e6 {[%emt 0:02:28]} 5. d4 {[%emt 0:01:49]} Nf6 {[%emt 0:01:44]} 6. h3 {[%emt 0:00:20]} Bxf3 {[%emt 0:00:54]} 7. Bxf3 {[%emt 0:00:04]} Be7 {[%emt 0:01:14]} 8. O-O {[%emt 0:05:31]} O-O {[%emt 0:00:44]} 9. Re1 {[%emt 0:00:07]} dxe4 {[%emt 0:01:20]} 10. Nxe4 {[%emt 0:03:07]} Nbd7 {[%emt 0:00:08]} 11. c3 {[%emt 0:00:34]} Nxe4 {[%emt 0:00:34]} 12. Bxe4 {[%emt 0:00:04]} Nf6 {[%emt 0:00:05]} 13. Bf3 {[%emt 0:00:07]} Qc7 {[%emt 0:00:22]} 14. g3 {[%emt 0:04:12]} Rfd8 {[%emt 0:03:59]} 15. Qe2 {[%emt 0:07:37]} c5 {[%emt 0:03:31]} 16. Bf4 {[%emt 0:06:33]} Qb6 {[%emt 0:04:17]} 17. dxc5 {[%emt 0:02:08]} Bxc5 {[%emt 0:00:28]} 18. Rad1 {[%emt 0:05:29]} Rac8 {[%emt 0:05:35]} 19. Kg2 {[%emt 0:08:38]} Ne8 {[%emt 0:06:28]} 20. Bg5 {[%emt 0:12:56]} f6 {[%emt 0:03:01]} 21. Bc1 {[%emt 0:03:40]} e5 {[%emt 0:00:37]} 22. Be4 {[%emt 0:01:05]} Bf8 {[%emt 0:17:41]} 23. Qh5 {[%emt 0:03:45]} g6 {[%emt 0:01:26]} 24. Qf3 {[%emt 0:00:14]} Rxd1 {[%emt 0:07:41]} 25. Rxd1 {[%emt 0:00:06]} Nd6 {[%emt 0:00:34]} 26. Bd5+ {[%emt 0:04:33]} Kg7 {[%emt 0:00:10]} 27. h4 {[%emt 0:00:07]} Be7 {[%emt 0:02:28]} 28. h5 {[%emt 0:00:49]} f5 {[%emt 0:06:05]} 29. Rh1 {[%emt 0:12:07]} Qc5 {[%emt 0:07:18]} 30. hxg6 {[%emt 0:04:24]} hxg6 {[%emt 0:00:26]} 31. Be3 {[%emt 0:01:00]} Qb5 {[%emt 0:01:20]} 32. b3 {[%emt 0:04:52]} b6 {[%emt 0:05:10]} 33. c4 {[%emt 0:00:18]} Qd7 {[%emt 0:01:00]} 34. Bh6+ {[%emt 0:02:48]} Kf6 {[%emt 0:00:09]} 35. Bc1 {[%emt 0:00:16]} Rf8 {[%emt 0:11:08]} 36. Qe3 {[%emt 0:01:40]} f4 {[%emt 0:02:24]} 37. gxf4 {[%emt 0:00:32]} Qg4+ {[%emt 0:00:06]} 38. Qg3 {[%emt 0:00:15]} Qxg3+ {[%emt 0:00:06]} 39. fxg3 {[%emt 0:00:16]} exf4 {[%emt 0:00:50]} 40. Bxf4 {[%emt 0:00:00]} Nf5 {[%emt 0:00:00]} 41. g4 {[%emt 0:04:43]} g5 {[%emt 0:01:37]} 42. Bc1 {[%emt 0:03:35]} Nh4+ {[%emt 0:01:18]} 43. Kf2 {[%emt 0:05:39]} Ke5+ {[%emt 0:03:23]} 44. Ke2 {[%emt 0:02:14]} Ng6 {[%emt 0:01:08]} 45. Rh7 {[%emt 0:01:33]} Bc5 {[%emt 0:06:50]} 46. Bxg5 {[%emt 0:06:47]} Rf2+ {[%emt 0:00:19]} 47. Kd3 {[%emt 0:03:10]} Rxa2 {[%emt 0:02:04]} 48. Rf7 {[%emt 0:01:20]} Rf2 {[%emt 0:02:48]} 49. Bf3 {[%emt 0:03:38]} Ke6 {[%emt 0:03:52]} 50. Rf6+ {[%emt 0:00:17]} Ke5 {[%emt 0:00:15]} 51. Rf5+ {[%emt 0:01:44]} Kd6 {[%emt 0:01:20]} 52. Ke4 {[%emt 0:00:51]} Ne7 {[%emt 0:00:47]} 53. Rf6+ {[%emt 0:00:12]} Kd7 {[%emt 0:00:08]} 54. Bd1 {[%emt 0:01:57]} Rg2 {[%emt 0:01:47]} 55. Bf4 {[%emt 0:01:08]} Rg1 {[%emt 0:00:23]} 56. Bf3 {[%emt 0:04:03]} Rb1 {[%emt 0:01:01]} 57. g5 {[%emt 0:00:04]} Rxb3 {[%emt 0:00:33]} 58. Bg4+ {[%emt 0:00:37]} Ke8 {[%emt 0:00:09]} 59. g6 {[%emt 0:00:50]} Ng8 {[%emt 0:01:42]} 60. Rf7 {[%emt 0:01:32]} Be7 {[%emt 0:00:29]} 61. Be6 {[%emt 0:00:41]} Rb1 {[%emt 0:00:56]} 62. g7 {[%emt 0:00:43]} Rg1 {[%emt 0:00:27]} 63. Be5 {[%emt 0:00:35]} Re1+ {[%emt 0:02:25]} 64. Kd5 {[%emt 0:00:08]} Rd1+ {[%emt 0:03:14]} 65. Kc6 {[%emt 0:00:02]} Re1 {[%emt 0:00:42]} 66. Rf5 {[%emt 0:00:07]} Rxe5 {[%emt 0:01:00]} 67. Rxe5 {[%emt 0:00:05]} Bf6 {[%emt 0:00:07]} 68. Re4 {[%emt 0:02:12]} Ne7+ {[%emt 0:00:59]} 69. Kb7 {[%emt 0:00:02]} Bxg7 {[%emt 0:00:11]} 70. Kxa7 {[%emt 0:00:08]} Bd4 {[%emt 0:00:17]} 71. Kb7 {[%emt 0:00:19]} Bc5 {[%emt 0:00:13]} 72. Kc7 {[%emt 0:00:11]} Kf8 {[%emt 0:00:39]} 73. Rg4 {[%emt 0:00:19]} Ke8 {[%emt 0:03:17]} 74. Rg3 {[%emt 0:00:11]} Kf8 {[%emt 0:02:38]} 75. Kd7 {[%emt 0:00:07]} 1-0

[Event "Asian Continental-ch Women 2019"]
[Site "XingTai"]
[Date "2019.06.09"]
[Round "3.25"]
[White "Pham, Le Thao Nguyen"]
[Black "San Diego, Marie Antoinette"]
[Result "1-0"]
[ECO "D02"]
[WhiteElo "2370"]
[BlackElo "2080"]
[Annotator "NA"]
[PlyCount "121"]
[EventDate "2019.06.06"]
[EventType "swiss"]
[EventCountry "CHN"]
[SourceTitle "playchess.com"]
[Source "ChessBase"]
[SourceQuality "1"]
[TimeControl "40/5400+30:1800+30"]

1. d4 {[%emt 0:03:50]} d5 {[%emt 0:00:00]} 2. Nf3 {[%emt 0:00:24]} Nf6 {[%emt 0:00:08]} 3. Bf4 {[%emt 0:00:27]} c5 {[%emt 0:00:37]} 4. e3 {[%emt 0:00:21]} Nc6 {[%emt 0:00:19]} 5. Nbd2 {[%emt 0:00:30]} cxd4 {[%emt 0:00:18]} 6. exd4 {[%emt 0:00:16]} Bf5 {[%emt 0:00:20]} 7. c3 {[%emt 0:00:48]} e6 {[%emt 0:00:58]} 8. Qb3 {[%emt 0:01:34]} Qc8 {[%emt 0:00:57]} 9. Nh4 {[%emt 0:01:26]} Bg6 {[%emt 0:01:45]} 10. Nxg6 {[%emt 0:01:46]} hxg6 {[%emt 0:00:10]} 11. h3 {[%emt 0:03:05]} Be7 {[%emt 0:06:15]} 12. Bd3 {[%emt 0:00:56]} a6 {[%emt 0:02:25]} 13. O-O {[%emt 0:07:54]} O-O {[%emt 0:01:07]} 14. a4 {[%emt 0:03:04]} Na5 {[%emt 0:08:10]} 15. Qc2 {[%emt 0:02:29]} Qd7 {[%emt 0:11:54]} 16. b4 {[%emt 0:07:02]} Nc4 {[%emt 0:09:11]} 17. Bxc4 {[%emt 0:18:22]} dxc4 {[%emt 0:00:11]} 18. Bg5 {[%emt 0:03:14]} b5 {[%emt 0:09:05]} 19. Bxf6 {[%emt 0:01:18]} gxf6 {[%emt 0:00:28]} 20. a5 {[%emt 0:05:48]} Rad8 {[%emt 0:04:14]} 21. Nf3 {[%emt 0:02:22]} Rfe8 {[%emt 0:08:00]} 22. Rfe1 {[%emt 0:01:28]} Bf8 {[%emt 0:02:16]} 23. Re2 {[%emt 0:01:22]} Bg7 {[%emt 0:00:35]} 24. Rae1 {[%emt 0:00:22]} Qd6 {[%emt 0:02:24]} 25. Qe4 {[%emt 0:02:46]} Qd5 {[%emt 0:18:08]} 26. Qh4 {[%emt 0:03:28]} Qc6 {[%emt 0:00:56]} 27. Re3 {[%emt 0:03:17]} Rd5 {[%emt 0:03:22]} 28. g4 {[%emt 0:02:30]} Red8 {[%emt 0:03:54]} 29. Re4 {[%emt 0:06:34]} Qd6 {[%emt 0:01:53]} 30. Kg2 {[%emt 0:00:41]} Rc8 {[%emt 0:03:08]} 31. Nh2 {[%emt 0:05:36]} e5 {[%emt 0:00:59]} 32. dxe5 {[%emt 0:03:33]} Rxe5 {[%emt 0:00:19]} 33. Rxe5 {[%emt 0:00:19]} fxe5 {[%emt 0:00:02]} 34. g5 {[%emt 0:00:19]} Qd5+ {[%emt 0:01:03]} 35. Re4 {[%emt 0:03:28]} Qd3 {[%emt 0:00:46]} 36. Re3 {[%emt 0:00:59]} Qd5+ {[%emt 0:00:13]} 37. Kg1 {[%emt 0:02:25]} Qd1+ {[%emt 0:00:12]} 38. Nf1 {[%emt 0:00:14]} Rd8 {[%emt 0:00:42]} 39. Kg2 {[%emt 0:00:39]} Qd5+ {[%emt 0:01:04]} 40. Kg1 {[%emt 0:00:00]} Qd1 {[%emt 0:00:00]} 41. Qe4 {[%emt 0:02:04]} Qd5 {[%emt 0:15:01]} 42. Ng3 {[%emt 0:03:00]} Qxe4 {[%emt 0:02:33]} 43. Nxe4 {[%emt 0:00:18]} f5 {[%emt 0:03:24]} 44. gxf6 {[%emt 0:02:26]} Bh6 {[%emt 0:00:11]} 45. Re2 {[%emt 0:01:43]} Kf7 {[%emt 0:00:30]} 46. Kg2 {[%emt 0:01:41]} Bf4 {[%emt 0:00:31]} 47. Re1 {[%emt 0:04:37]} Rd3 {[%emt 0:03:11]} 48. h4 {[%emt 0:01:20]} Rd8 {[%emt 0:05:06]} 49. Rh1 {[%emt 0:02:21]} Rd3 {[%emt 0:04:31]} 50. h5 {[%emt 0:01:17]} gxh5 {[%emt 0:00:22]} 51. Rxh5 {[%emt 0:00:07]} Kg6 {[%emt 0:00:44]} 52. Rh8 {[%emt 0:00:33]} Bd2 {[%emt 0:00:49]} 53. Rg8+ {[%emt 0:04:42]} Kf7 {[%emt 0:00:01]} 54. Rg3 {[%emt 0:00:29]} Rxg3+ {[%emt 0:00:52]} 55. fxg3 {[%emt 0:02:02]} Bc1 {[%emt 0:00:35]} 56. Kf3 {[%emt 0:01:09]} Kg6 {[%emt 0:00:27]} 57. Ke2 {[%emt 0:00:16]} Bh6 {[%emt 0:00:37]} 58. Nc5 {[%emt 0:01:00]} Bf8 {[%emt 0:00:26]} 59. Nxa6 {[%emt 0:00:11]} Bd6 {[%emt 0:00:10]} 60. Nc5 {[%emt 0:00:16]} Bc7 {[%emt 0:00:37]} 61. Nd7 {[%emt 0:00:50]} 1-0

[Event "Asian Continental-ch Women 2019"]
[Site "XingTai"]
[Date "2019.06.10"]
[Round "4.18"]
[White "Kulkarni Bhakti"]
[Black "Saduakassova, Dinara"]
[Result "1/2-1/2"]
[ECO "E04"]
[WhiteElo "2380"]
[BlackElo "2458"]
[Annotator "ChessBase"]
[PlyCount "45"]
[EventDate "2019.06.06"]
[EventType "swiss"]
[EventCountry "CHN"]
[SourceTitle "playchess.com"]
[Source "ChessBase"]
[SourceQuality "1"]
[TimeControl "40/5400+30:1800+30"]

1. d4 {[%emt 0:00:00]} Nf6 {[%emt 0:00:00]} 2. c4 {[%emt 0:00:09]} e6 {[%emt 0:00:00]} 3. g3 {[%emt 0:00:44]} d5 {[%emt 0:00:00]} 4. Bg2 {[%emt 0:00:13]} dxc4 {[%emt 0:00:00]} 5. Nf3 {[%emt 0:00:38]} a6 {[%emt 0:00:04]} 6. O-O {[%emt 0:03:47]} Nc6 {[%emt 0:00:15]} 7. e3 {[%emt 0:01:52]} Bd7 {[%emt 0:00:11]} 8. Nfd2 {[%emt 0:02:20]} Na5 {[%emt 0:10:58]} 9. b3 {[%emt 0:17:41]} cxb3 {[%emt 0:03:27]} 10. Nxb3 {[%emt 0:00:23]} Nxb3 {[%emt 0:11:59]} 11. Qxb3 {[%emt 0:00:13]} Rb8 {[%emt 0:03:41]} 12. Nc3 {[%emt 0:02:01]} Be7 {[%emt 0:09:11]} 13. e4 {[%emt 0:01:34]} O-O {[%emt 0:05:34]} 14. e5 {[%emt 0:03:39]} Nd5 {[%emt 0:01:09]} 15. Nxd5 {[%emt 0:01:56]} exd5 {[%emt 0:00:04]} 16. Bxd5 {[%emt 0:01:31]} Bc6 {[%emt 0:07:28]} 17. Bxc6 {[%emt 0:03:20]} bxc6 {[%emt 0:00:04]} 18. Qc4 {[%emt 0:08:54]} Rb4 {[%emt 0:03:51]} 19. Qxa6 {[%emt 0:01:55]} Qxd4 {[%emt 0:01:00]} 20. Be3 {[%emt 0:00:34]} Qxe5 {[%emt 0:01:57]} 21. Qxc6 {[%emt 0:00:20]} Bf6 {[%emt 0:02:41]} 22. Rab1 {[%emt 0:05:01]} Qe4 {[%emt 0:03:50]} 23. Qxe4 {[%emt 0:06:38]} 1/2-1/2

[Event "Asian Continental-ch Women 2019"]
[Site "XingTai"]
[Date "2019.06.10"]
[Round "4.19"]
[White "Sukandar, Irine Kharisma"]
[Black "Zhai, Mo"]
[Result "1-0"]
[ECO "C65"]
[WhiteElo "2378"]
[BlackElo "2358"]
[Annotator "NA"]
[PlyCount "101"]
[EventDate "2019.06.06"]
[EventType "swiss"]
[EventCountry "CHN"]
[SourceTitle "playchess.com"]
[Source "ChessBase"]
[SourceQuality "1"]
[TimeControl "40/5400+30:1800+30"]

1. e4 {[%emt 0:00:00]} e5 {[%emt 0:00:00]} 2. Nf3 {[%emt 0:00:09]} Nc6 {[%emt 0:00:00]} 3. Bb5 {[%emt 0:00:25]} Nf6 {[%emt 0:00:28]} 4. d3 {[%emt 0:00:24]} Bc5 {[%emt 0:00:26]} 5. c3 {[%emt 0:00:46]} O-O {[%emt 0:00:09]} 6. O-O {[%emt 0:00:26]} d6 {[%emt 0:00:15]} 7. h3 {[%emt 0:01:17]} Ne7 {[%emt 0:04:54]} 8. d4 {[%emt 0:01:31]} Bb6 {[%emt 0:00:08]} 9. Bd3 {[%emt 0:00:27]} Ng6 {[%emt 0:00:15]} 10. Re1 {[%emt 0:00:42]} c6 {[%emt 0:00:51]} 11. Nbd2 {[%emt 0:01:00]} Bc7 {[%emt 0:03:38]} 12. Nf1 {[%emt 0:01:03]} Re8 {[%emt 0:00:54]} 13. Ng3 {[%emt 0:02:31]} h6 {[%emt 0:07:39]} 14. Qc2 {[%emt 0:05:34]} Nh7 {[%emt 0:03:49]} 15. Be3 {[%emt 0:26:05]} Ng5 {[%emt 0:05:53]} 16. Nh2 {[%emt 0:02:20]} Nf4 {[%emt 0:04:45]} 17. Bf1 {[%emt 0:01:18]} Be6 {[%emt 0:08:28]} 18. Rad1 {[%emt 0:01:57]} Qf6 {[%emt 0:02:15]} 19. c4 {[%emt 0:04:25]} h5 {[%emt 0:08:58]} 20. d5 {[%emt 0:10:01]} Bd7 {[%emt 0:00:41]} 21. Qc3 {[%emt 0:05:13]} cxd5 {[%emt 0:10:46]} 22. exd5 {[%emt 0:02:42]} h4 {[%emt 0:03:29]} 23. Ne2 {[%emt 0:07:50]} Qg6 {[%emt 0:11:50]} 24. Kh1 {[%emt 0:03:49]} Ne4 {[%emt 0:01:25]} 25. Qa3 {[%emt 0:01:11]} Bb6 {[%emt 0:09:54]} 26. Nxf4 {[%emt 0:01:31]} exf4 {[%emt 0:00:11]} 27. Bxb6 {[%emt 0:00:13]} axb6 {[%emt 0:00:08]} 28. Qf3 {[%emt 0:00:19]} Rxa2 {[%emt 0:00:18]} 29. Bd3 {[%emt 0:00:36]} Bf5 {[%emt 0:04:12]} 30. Re2 {[%emt 0:02:05]} Raa8 {[%emt 0:05:06]} 31. Qxf4 {[%emt 0:03:17]} Ng3+ {[%emt 0:00:41]} 32. fxg3 {[%emt 0:00:22]} Bxd3 {[%emt 0:00:01]} 33. Rxe8+ {[%emt 0:02:25]} Rxe8 {[%emt 0:00:02]} 34. Qxh4 {[%emt 0:00:49]} Re4 {[%emt 0:03:35]} 35. Qd8+ {[%emt 0:00:46]} Kh7 {[%emt 0:00:01]} 36. Nf3 {[%emt 0:01:38]} Rxc4 {[%emt 0:00:19]} 37. Ng5+ {[%emt 0:01:34]} Kh6 {[%emt 0:00:01]} 38. h4 {[%emt 0:00:47]} Kh5 {[%emt 0:00:02]} 39. Nh3 {[%emt 0:01:53]} f6 {[%emt 0:02:25]} 40. Qh8+ {[%emt 0:00:00]} Kg4 {[%emt 0:00:00]} 41. Rxd3 {[%emt 0:20:05]} Qxd3 {[%emt 0:01:46]} 42. Nf2+ {[%emt 0:04:45]} Kxg3 {[%emt 0:00:07]} 43. Nxd3 {[%emt 0:00:04]} Rxh4+ {[%emt 0:00:09]} 44. Qxh4+ {[%emt 0:00:04]} Kxh4 {[%emt 0:00:04]} 45. Nf2 {[%emt 0:00:25]} Kg3 {[%emt 0:01:17]} 46. Ne4+ {[%emt 0:00:09]} Kf4 {[%emt 0:00:03]} 47. Nxd6 {[%emt 0:00:18]} Ke5 {[%emt 0:00:06]} 48. Ne8 {[%emt 0:00:27]} Kxd5 {[%emt 0:00:18]} 49. Nxg7 {[%emt 0:00:05]} b5 {[%emt 0:01:06]} 50. Nh5 {[%emt 0:02:01]} f5 {[%emt 0:01:05]} 51. Ng3 {[%emt 0:00:04]} 1-0

[Event "Asian Continental-ch Women 2019"]
[Site "XingTai"]
[Date "2019.06.10"]
[Round "4.20"]
[White "Munguntuul, Batkhuyag"]
[Black "Kurbonboeva, Sarvinoz"]
[Result "0-1"]
[ECO "B56"]
[WhiteElo "2420"]
[BlackElo "2259"]
[Annotator "NA"]
[PlyCount "140"]
[EventDate "2019.06.06"]
[EventType "swiss"]
[EventCountry "CHN"]
[SourceTitle "playchess.com"]
[Source "ChessBase"]
[SourceQuality "1"]
[TimeControl "40/5400+30:1800+30"]

1. e4 {[%emt 0:00:00]} c5 {[%emt 0:00:00]} 2. Nf3 {[%emt 0:00:00]} d6 {[%emt 0:00:00]} 3. d4 {[%emt 0:00:00]} cxd4 {[%emt 0:00:00]} 4. Nxd4 {[%emt 0:00:00]} Nf6 {[%emt 0:00:08]} 5. Nc3 {[%emt 0:00:00]} Nc6 {[%emt 0:00:10]} 6. Be3 {[%emt 0:04:29]} Ng4 {[%emt 0:01:01]} 7. Bc1 {[%emt 0:02:13]} Qb6 {[%emt 0:04:43]} 8. Bb5 {[%emt 0:09:19]} e5 {[%emt 0:25:48]} 9. Nd5 {[%emt 0:27:16]} Qxd4 {[%emt 0:00:08]} 10. Qxd4 {[%emt 0:00:15]} exd4 {[%emt 0:00:06]} 11. Nc7+ {[%emt 0:00:08]} Kd8 {[%emt 0:16:42]} 12. Nxa8 {[%emt 0:00:18]} Bd7 {[%emt 0:00:06]} 13. Bf4 {[%emt 0:09:33]} Kc8 {[%emt 0:06:10]} 14. Rd1 {[%emt 0:01:32]} Nge5 {[%emt 0:02:34]} 15. O-O {[%emt 0:22:24]} Kb8 {[%emt 0:02:45]} 16. c3 {[%emt 0:01:15]} dxc3 {[%emt 0:05:48]} 17. bxc3 {[%emt 0:00:03]} Kxa8 {[%emt 0:05:09]} 18. Bxc6 {[%emt 0:01:04]} Nxc6 {[%emt 0:00:08]} 19. Bxd6 {[%emt 0:00:53]} Bxd6 {[%emt 0:00:31]} 20. Rxd6 {[%emt 0:00:03]} Be6 {[%emt 0:00:44]} 21. a3 {[%emt 0:00:04]} Kb8 {[%emt 0:03:31]} 22. f4 {[%emt 0:01:59]} Kc7 {[%emt 0:00:51]} 23. Rfd1 {[%emt 0:00:51]} g6 {[%emt 0:00:10]} 24. Kf2 {[%emt 0:00:34]} b6 {[%emt 0:02:55]} 25. Kf3 {[%emt 0:02:30]} h5 {[%emt 0:00:26]} 26. h3 {[%emt 0:00:02]} Na5 {[%emt 0:01:20]} 27. R6d4 {[%emt 0:00:55]} Nb3 {[%emt 0:01:22]} 28. Rd6 {[%emt 0:00:08]} Nc5 {[%emt 0:00:17]} 29. R6d4 {[%emt 0:00:39]} Bd7 {[%emt 0:02:11]} 30. e5 {[%emt 0:04:59]} Ba4 {[%emt 0:02:39]} 31. Rg1 {[%emt 0:01:42]} Bc6+ {[%emt 0:02:20]} 32. Ke3 {[%emt 0:00:04]} h4 {[%emt 0:00:11]} 33. Rd6 {[%emt 0:00:50]} Ne6 {[%emt 0:00:19]} 34. Rgd1 {[%emt 0:02:06]} Rh5 {[%emt 0:01:32]} 35. R6d2 {[%emt 0:05:14]} Rf5 {[%emt 0:01:09]} 36. Rf2 {[%emt 0:00:02]} g5 {[%emt 0:00:52]} 37. fxg5 {[%emt 0:00:07]} Rxe5+ {[%emt 0:00:06]} 38. Kd2 {[%emt 0:00:23]} Nxg5 {[%emt 0:00:10]} 39. Kc1 {[%emt 0:00:23]} Bd5 {[%emt 0:07:10]} 40. Rd4 {[%emt 0:00:00]} Ne4 {[%emt 0:00:00]} 41. Re2 {[%emt 0:08:54]} f5 {[%emt 0:01:47]} 42. Re3 {[%emt 0:01:35]} Kc6 {[%emt 0:02:28]} 43. Kb2 {[%emt 0:00:17]} Kc5 {[%emt 0:05:22]} 44. Rf3 {[%emt 0:03:51]} Nd6 {[%emt 0:04:35]} 45. Rf2 {[%emt 0:02:31]} Nc4+ {[%emt 0:02:23]} 46. Kc1 {[%emt 0:00:53]} Re3 {[%emt 0:07:02]} 47. Rxh4 {[%emt 0:08:35]} Be4 {[%emt 0:00:09]} 48. Kd1 {[%emt 0:00:28]} Rxc3 {[%emt 0:01:18]} 49. Rh7 {[%emt 0:01:32]} Bd3 {[%emt 0:05:15]} 50. Rf3 {[%emt 0:06:23]} Rxa3 {[%emt 0:08:01]} 51. Ke1 {[%emt 0:02:18]} Ra1+ {[%emt 0:00:27]} 52. Kf2 {[%emt 0:00:02]} Be4 {[%emt 0:00:41]} 53. Rg3 {[%emt 0:01:18]} Ne5 {[%emt 0:00:40]} 54. Rgg7 {[%emt 0:01:20]} a5 {[%emt 0:00:42]} 55. h4 {[%emt 0:01:17]} Ra2+ {[%emt 0:01:32]} 56. Ke3 {[%emt 0:00:32]} Kd5 {[%emt 0:01:29]} 57. Rh5 {[%emt 0:01:11]} a4 {[%emt 0:01:02]} 58. g4 {[%emt 0:00:25]} Nc4+ {[%emt 0:00:27]} 59. Kf4 {[%emt 0:00:01]} Rf2+ {[%emt 0:00:13]} 60. Kg5 {[%emt 0:00:17]} a3 {[%emt 0:00:36]} 61. Ra7 {[%emt 0:00:32]} a2 {[%emt 0:00:51]} 62. Ra4 {[%emt 0:01:33]} b5 {[%emt 0:00:06]} 63. Rxa2 {[%emt 0:00:26]} Rxa2 {[%emt 0:00:05]} 64. gxf5 {[%emt 0:00:04]} Ke5 {[%emt 0:01:03]} 65. f6 {[%emt 0:00:14]} Rg2+ {[%emt 0:00:36]} 66. Kh6+ {[%emt 0:00:01]} Kxf6 {[%emt 0:00:10]} 67. Rxb5 {[%emt 0:00:13]} Rg6+ {[%emt 0:00:09]} 68. Kh7 {[%emt 0:00:26]} Rg5+ {[%emt 0:00:13]} 69. Kh6 {[%emt 0:00:01]} Rxb5 {[%emt 0:00:09]} 70. h5 {[%emt 0:00:03]} Kf5 {[%emt 0:00:11]} 0-1

[Event "Asian Continental-ch Women 2019"]
[Site "XingTai"]
[Date "2019.06.10"]
[Round "4.21"]
[White "Li, Xueyi"]
[Black "Munkhzul, Turmunkh"]
[Result "1-0"]
[ECO "E62"]
[WhiteElo "2305"]
[BlackElo "2371"]
[Annotator "NA"]
[PlyCount "117"]
[EventDate "2019.06.06"]
[EventType "swiss"]
[EventCountry "CHN"]
[SourceTitle "playchess.com"]
[Source "ChessBase"]
[SourceQuality "1"]
[TimeControl "40/5400+30:1800+30"]

1. d4 {[%emt 0:00:00]} Nf6 {[%emt 0:00:00]} 2. c4 {[%emt 0:00:01]} g6 {[%emt 0:00:06]} 3. Nc3 {[%emt 0:00:30]} Bg7 {[%emt 0:00:21]} 4. Nf3 {[%emt 0:00:32]} O-O {[%emt 0:00:31]} 5. g3 {[%emt 0:00:14]} d6 {[%emt 0:00:59]} 6. Bg2 {[%emt 0:03:23]} c6 {[%emt 0:00:46]} 7. O-O {[%emt 0:00:16]} Bf5 {[%emt 0:00:36]} 8. Re1 {[%emt 0:00:39]} Ne4 {[%emt 0:00:29]} 9. Qb3 {[%emt 0:00:09]} Qb6 {[%emt 0:02:44]} 10. Nh4 {[%emt 0:00:49]} Nxc3 {[%emt 0:09:50]} 11. Nxf5 {[%emt 0:03:37]} gxf5 {[%emt 0:08:21]} 12. bxc3 {[%emt 0:00:10]} Qxb3 {[%emt 0:01:22]} 13. axb3 {[%emt 0:00:10]} Nd7 {[%emt 0:02:26]} 14. Ba3 {[%emt 0:04:49]} Rfd8 {[%emt 0:09:09]} 15. e3 {[%emt 0:15:08]} Nf6 {[%emt 0:05:21]} 16. b4 {[%emt 0:03:31]} Ne4 {[%emt 0:01:32]} 17. g4 {[%emt 0:11:56]} Nd2 {[%emt 0:04:23]} 18. gxf5 {[%emt 0:00:24]} Nxc4 {[%emt 0:01:00]} 19. Bc1 {[%emt 0:01:40]} d5 {[%emt 0:03:46]} 20. f3 {[%emt 0:01:32]} Kh8 {[%emt 0:01:49]} 21. e4 {[%emt 0:02:37]} dxe4 {[%emt 0:08:34]} 22. Bf1 {[%emt 0:09:34]} Nb6 {[%emt 0:11:57]} 23. fxe4 {[%emt 0:01:00]} Rg8 {[%emt 0:03:35]} 24. Kh1 {[%emt 0:00:36]} Bf6 {[%emt 0:02:38]} 25. Bd3 {[%emt 0:00:58]} Bh4 {[%emt 0:00:51]} 26. Rf1 {[%emt 0:00:52]} Rg4 {[%emt 0:02:37]} 27. Be3 {[%emt 0:03:22]} Nd7 {[%emt 0:02:48]} 28. e5 {[%emt 0:09:58]} a6 {[%emt 0:02:08]} 29. Rg1 {[%emt 0:11:12]} Rag8 {[%emt 0:01:20]} 30. Rxg4 {[%emt 0:00:45]} Rxg4 {[%emt 0:00:06]} 31. c4 {[%emt 0:01:25]} Rg8 {[%emt 0:06:37]} 32. Be2 {[%emt 0:03:05]} Rd8 {[%emt 0:01:48]} 33. Kg2 {[%emt 0:00:30]} f6 {[%emt 0:01:00]} 34. e6 {[%emt 0:00:26]} Nf8 {[%emt 0:00:56]} 35. Kf3 {[%emt 0:01:57]} Bg5 {[%emt 0:00:32]} 36. Rg1 {[%emt 0:04:04]} h6 {[%emt 0:01:41]} 37. Rg4 {[%emt 0:01:00]} a5 {[%emt 0:01:27]} 38. bxa5 {[%emt 0:01:10]} Ra8 {[%emt 0:00:22]} 39. h4 {[%emt 0:00:10]} Bxe3 {[%emt 0:00:13]} 40. Kxe3 {[%emt 0:00:00]} Rxa5 {[%emt 0:00:00]} 41. Bd3 {[%emt 0:00:45]} b6 {[%emt 0:11:44]} 42. Rg1 {[%emt 0:00:55]} b5 {[%emt 0:01:37]} 43. cxb5 {[%emt 0:00:33]} cxb5 {[%emt 0:00:05]} 44. Rb1 {[%emt 0:00:05]} Ra6 {[%emt 0:02:47]} 45. d5 {[%emt 0:00:10]} Kg7 {[%emt 0:01:20]} 46. Rxb5 {[%emt 0:00:14]} Ra7 {[%emt 0:00:05]} 47. Rb8 {[%emt 0:01:19]} Rc7 {[%emt 0:00:21]} 48. Re8 {[%emt 0:00:20]} Nh7 {[%emt 0:02:28]} 49. Bb5 {[%emt 0:00:40]} h5 {[%emt 0:00:51]} 50. Bd7 {[%emt 0:00:11]} Nf8 {[%emt 0:00:17]} 51. Rxe7+ {[%emt 0:00:13]} Kh6 {[%emt 0:00:05]} 52. Re8 {[%emt 0:02:12]} Nxd7 {[%emt 0:01:06]} 53. d6 {[%emt 0:02:21]} Ra7 {[%emt 0:01:52]} 54. e7 {[%emt 0:03:42]} Kg7 {[%emt 0:02:44]} 55. Rd8 {[%emt 0:01:19]} Ra5 {[%emt 0:03:00]} 56. e8=Q {[%emt 0:00:25]} Re5+ {[%emt 0:00:07]} 57. Qxe5 {[%emt 0:00:16]} Nxe5 {[%emt 0:00:05]} 58. d7 {[%emt 0:00:32]} Nf7 {[%emt 0:00:34]} 59. Re8 {[%emt 0:00:20]} 1-0

[Event "Asian Continental-ch Women 2019"]
[Site "XingTai"]
[Date "2019.06.10"]
[Round "4.22"]
[White "Karavade, Eesha"]
[Black "Hoang, Thi Bao Tram"]
[Result "1/2-1/2"]
[ECO "D13"]
[WhiteElo "2370"]
[BlackElo "2293"]
[Annotator "NA"]
[PlyCount "55"]
[EventDate "2019.06.06"]
[EventType "swiss"]
[EventCountry "CHN"]
[SourceTitle "playchess.com"]
[Source "ChessBase"]
[SourceQuality "1"]
[TimeControl "40/5400+30:1800+30"]

1. d4 {[%emt 0:00:00]} d5 {[%emt 0:00:00]} 2. c4 {[%emt 0:00:16]} c6 {[%emt 0:00:29]} 3. cxd5 {[%emt 0:01:13]} cxd5 {[%emt 0:00:24]} 4. Bf4 {[%emt 0:00:08]} Nc6 {[%emt 0:01:50]} 5. e3 {[%emt 0:00:08]} Nf6 {[%emt 0:00:24]} 6. Nc3 {[%emt 0:00:09]} e6 {[%emt 0:05:21]} 7. Bd3 {[%emt 0:12:27]} Bd6 {[%emt 0:06:11]} 8. Bxd6 {[%emt 0:00:52]} Qxd6 {[%emt 0:00:15]} 9. Nf3 {[%emt 0:00:08]} O-O {[%emt 0:00:51]} 10. O-O {[%emt 0:00:05]} Bd7 {[%emt 0:00:53]} 11. Qe2 {[%emt 0:03:48]} Rac8 {[%emt 0:00:35]} 12. Rfc1 {[%emt 0:00:38]} Rfe8 {[%emt 0:02:21]} 13. h3 {[%emt 0:04:34]} a6 {[%emt 0:00:54]} 14. Qd1 {[%emt 0:00:56]} Rc7 {[%emt 0:05:23]} 15. Na4 {[%emt 0:08:53]} Nb4 {[%emt 0:03:18]} 16. Rxc7 {[%emt 0:07:37]} Qxc7 {[%emt 0:00:15]} 17. Nc5 {[%emt 0:04:04]} Nxd3 {[%emt 0:08:44]} 18. Nxd3 {[%emt 0:03:07]} b6 {[%emt 0:02:29]} 19. Rc1 {[%emt 0:00:45]} Qb7 {[%emt 0:00:11]} 20. Qb3 {[%emt 0:03:37]} Rc8 {[%emt 0:01:31]} 21. Rxc8+ {[%emt 0:06:05]} Bxc8 {[%emt 0:00:12]} 22. Qc2 {[%emt 0:00:11]} Bd7 {[%emt 0:00:59]} 23. Nde5 {[%emt 0:04:30]} Be8 {[%emt 0:03:36]} 24. Nd2 {[%emt 0:02:18]} Nd7 {[%emt 0:04:27]} 25. Nxd7 {[%emt 0:05:23]} Bxd7 {[%emt 0:01:09]} 26. h4 {[%emt 0:01:03]} Qc6 {[%emt 0:00:44]} 27. Qxc6 {[%emt 0:00:40]} Bxc6 {[%emt 0:00:11]} 28. Kh2 {[%emt 0:02:09]} 1/2-1/2